bitfinex-derivatives/quotes_SOLF0:USTF0_20251201
["timestamp","ask_amount","ask_price","bid_price","bid_amount"]
[1764572650579,3.38,126.67,126.65,27.06]
[1764572650781,3.4403966,126.67,126.65,27.11618605]
[1764572652674,10.5460966,126.67,126.65,0.05618605]
[1764572652879,3.38,126.66,126.65,0.05618605]
[1764572655179,0.0603966,126.67,126.65,0.05618605]
[1764572655386,0.0603966,126.67,126.66,3.2]
[1764572655983,3.4403966,126.67,126.65,0.05618605]
[1764572656679,3.38,126.65,126.6,5.83125707]
[1764572656876,3.38,126.65,126.58,5.83125707]
[1764572657082,3.38,126.65,126.6,3.2]
[1764572657781,3.4350616,126.64,126.61,0.05195341]
[1764572658787,10.5423616,126.64,126.61,0.05195341]
[1764572659088,3.38,126.63,126.61,0.05195341]
[1764572659380,3.4350616,126.64,126.61,3.25195341]
[1764572659588,0.0550616,126.64,126.61,3.25195341]
[1764572659776,0.0550616,126.64,126.62,5.97125707]
[1764572661183,0.0550616,126.64,126.62,3.34]
[1764572662290,3.1650616,126.64,126.62,3.34]
[1764572662482,3.1650616,126.64,126.61,7.16075341]
[1764572662796,3.1650616,126.64,126.61,0.05195341]
[1764572663089,3.11,126.62,126.61,0.05195341]
[1764572663296,3.11,126.61,126.56,5.97125707]
[1764572663496,3.11,126.61,126.57,27.06]
[1764572664294,7.1095,126.6,126.57,27.06]
[1764572664496,10.26948177,126.6,126.58,0.0597693]
[1764572666598,0.04998177,126.6,126.58,6.03102637]
[1764572666993,0.04998177,126.6,126.59,3.34]
[1764572668294,0.04998177,126.6,126.59,10.45]
[1764572669000,10.2177,126.64,126.59,3.34]
[1764572669200,10.2177,126.64,126.61,3.34]
[1764572669401,7.1077,126.64,126.61,3.34]
[1764572670000,7.16800579,126.64,126.61,3.398522]
[1764572670200,0.06030579,126.64,126.61,3.398522]
[1764572671393,0.06030579,126.64,126.62,2.63125707]
[1764572671597,0.06030579,126.64,126.63,30.42]
[1764572673396,0.06030579,126.64,126.63,27.06]
[1764572674204,0.06030579,126.64,126.62,5.99125707]
[1764572674408,0.06030579,126.64,126.62,33.05125707]
[1764572674899,0.06030579,126.64,126.62,5.99125707]
[1764572675405,0.06030579,126.64,126.61,0.058522]
[1764572675406,3.19030579,126.64,126.61,0.058522]
[1764572678808,10.29760579,126.64,126.61,0.058522]
[1764572679007,3.13,126.63,126.61,0.058522]
[1764572679407,10.2383,126.62,126.61,0.058522]
[1764572679909,10.2383,126.62,126.5,130.25811325]
[1764572679910,10.2403,126.59,126.55,5.99125707]
[1764572680102,10.2403,126.59,126.56,3.36]
[1764572680800,10.29201101,126.59,126.56,3.42049844]
[1764572685307,3.13,126.58,126.56,3.42049844]
[1764572687211,3.13,126.58,126.56,0.06049844]
[1764572688313,3.18171101,126.59,126.56,3.42049844]
[1764572692013,10.29181101,126.59,126.56,3.42049844]
[1764572693716,3.2,126.58,126.56,3.42049844]
[1764572694018,10.3106,126.58,126.56,3.42049844]
[1764572695915,10.3111,126.57,126.56,0.06049844]
[1764572696112,3.2,126.58,126.56,3.27049844]
[1764572697319,10.36221101,126.59,126.56,3.27049844]
[1764572699419,10.3106,126.58,126.56,3.27049844]
[1764572701114,3.2,126.56,126.51,3.21]
[1764572702322,10.3131,126.54,126.52,0.05377185]
[1764572704622,7.16407266,126.55,126.52,3.26377185]
[1764572704826,0.05177266,126.55,126.52,3.26377185]
[1764572707524,3.25177266,126.55,126.52,10.37767185]
[1764572709926,0.05177266,126.55,126.53,5.84125707]
[1764572710125,0.05177266,126.55,126.54,3.21]
[1764572713427,0.05177266,126.55,126.53,10.3234]
[1764572713922,0.05177266,126.55,126.54,3.21]
[1764572714725,0.05177266,126.55,126.53,7.1134]
[1764572714920,0.05177266,126.55,126.53,10.3234]
[1764572715229,0.05177266,126.55,126.54,27.04]
[1764572715721,3.25177266,126.55,126.53,27.04]
[1764572717427,3.22,126.54,126.53,27.04]
[1764572719330,3.22,126.54,126.47,3.27]
[1764572719527,3.22,126.54,126.49,3.27]
[1764572720431,10.38474647,126.53,126.5,3.43141751]
[1764572720934,3.22,126.52,126.5,3.43141751]
[1764572721834,7.16474647,126.53,126.5,3.43141751]
[1764572722024,0.05124647,126.53,126.5,3.43141751]
[1764572723227,124.8341,126.58,126.53,3.38]
[1764572723228,113.8321,126.58,126.53,3.38]
[1764572723427,3.22,126.57,126.54,30.44]
[1764572724136,3.27673207,126.57,126.54,0.05117411]
[1764572724337,3.22,126.55,126.54,0.05117411]
[1764572725334,7.112,126.56,126.54,3.43117411]
[1764572726437,0.05673207,126.57,126.54,3.43117411]
[1764572727026,0.05673207,126.57,126.54,10.54397411]
[1764572727232,0.05673207,126.57,126.55,3.38]
[1764572729035,3.27673207,126.57,126.55,3.38]
[1764572729238,0.05673207,126.57,126.55,30.44]
[1764572729843,0.05673207,126.57,126.55,37.5521]
[1764572730437,3.27673207,126.57,126.54,0.05117411]
[1764572730842,3.22,126.55,126.54,0.05117411]
[1764572732340,10.3323,126.55,126.54,0.05117411]
[1764572736942,0.05673207,126.57,126.49,3.1]
[1764572736943,10.504,126.52,126.49,3.1]
[1764572737246,10.504,126.52,126.49,30.16]
[1764572737542,10.504,126.52,126.5,3.1]
[1764572737942,10.56180803,126.52,126.5,3.15494822]
[1764572739446,3.44780803,126.52,126.5,3.15494822]
[1764572741846,3.44780803,126.52,126.5,0.05494822]
[1764572742150,10.5045,126.51,126.5,0.05494822]
[1764572753472,3.26,126.48,126.45,3.28]
[1764572753672,3.26,126.52,126.47,3.28]
[1764572754073,10.3751,126.5,126.47,3.28]
[1764572754570,10.42960811,126.5,126.47,3.33525025]
[1764572754773,3.26,126.49,126.47,3.33525025]
[1764572755467,3.26,126.49,126.47,0.05525025]
[1764572757968,3.31450811,126.5,126.47,3.33525025]
[1764572758162,0.05450811,126.5,126.47,3.33525025]
[1764572758871,0.05450811,126.5,126.48,3.28]
[1764572759876,3.31450811,126.5,126.48,3.28]
[1764572761378,10.42960811,126.5,126.48,3.28]
[1764572761572,10.42960811,126.5,126.47,30.39525025]
[1764572761773,3.26,126.49,126.47,0.05525025]
[1764572762779,10.376,126.49,126.47,0.05525025]
[1764572762980,3.26,126.49,126.47,0.05525025]
[1764572764470,10.3762,126.48,126.47,0.05525025]
[1764572767483,3.31450811,126.5,126.47,3.33525025]
[1764572767675,3.26,126.49,126.47,0.05525025]
[1764572768476,10.376,126.49,126.47,0.05525025]
[1764572768673,3.26,126.49,126.47,0.05525025]
[1764572769385,10.3762,126.48,126.47,0.05525025]
[1764572771178,3.26,126.45,126.41,10.3997]
[1764572771384,3.26,126.45,126.43,3.28]
[1764572772282,3.26,126.45,126.43,3.33176776]
[1764572772283,3.31423235,126.45,126.43,3.33176776]
[1764572772680,0.05423235,126.45,126.43,5.97191813]
[1764572774687,0.05423235,126.45,126.44,3.28]
[1764572775892,3.31423235,126.45,126.43,5.97191813]
[1764572776493,10.43233235,126.45,126.43,0.05176776]
[1764572778387,7.1184,126.44,126.43,0.05176776]
[1764572778592,3.31423235,126.45,126.43,0.05176776]
[1764572780492,10.43213235,126.45,126.43,0.05176776]
[1764572782495,10.3484,126.44,126.43,0.05176776]
[1764572795807,3.31423235,126.45,126.43,3.42176776]
[1764572796797,3.31423235,126.45,126.43,0.05176776]
[1764572798202,3.31423235,126.45,126.43,3.42176776]
[1764572798407,0.05423235,126.45,126.44,3.37]
[1764572798608,3.31423235,126.45,126.43,6.06191813]
[1764572799199,0.05423235,126.45,126.44,3.37]
[1764572799414,5.86,126.48,126.44,3.37]
[1764572799607,5.06992414,126.48,126.47,3.37]
[1764572800597,5.06992414,126.48,126.46,33.12370828]
[1764572800804,5.06992414,126.48,126.47,3.37]
[1764572802014,5.06992414,126.48,126.47,30.43]
[1764572802514,5.06992414,126.48,126.47,37.5468]
[1764572803411,13.58,126.5,126.49,0.35]
[1764572803613,13.58,126.5,126.49,2.99015037]
[1764572803913,7.1134,126.54,126.49,2.99015037]
[1764572803914,3.26,126.53,126.5,0.35]
[1764572804113,3.26,126.53,126.51,2.64015037]
[1764572804614,3.31048754,126.53,126.51,2.69142473]
[1764572805417,3.26,126.52,126.51,2.69142473]
[1764572807518,3.26,126.52,126.51,0.05127436]
[1764572808423,10.3739,126.52,126.51,0.05127436]
[1764572808622,3.26,126.51,126.47,2.64015037]
[1764572808821,3.26,126.51,126.47,29.70015037]
[1764572809022,3.26,126.49,126.47,29.70015037]
[1764572809619,10.43358413,126.49,126.47,29.75669399]
[1764572809825,3.26,126.48,126.47,27.11654362]
[1764572810612,3.26,126.47,126.43,2.64015037]
[1764572810821,3.26,126.46,126.39,23.88145738]
[1764572811123,3.26,126.46,126.41,27.4]
[1764572811618,10.3785,126.44,126.42,0.05505821]
[1764572813625,3.26,126.43,126.42,0.05505821]
[1764572813816,3.26,126.42,126.41,24.63658411]
[1764572815132,3.26,126.42,126.41,21.22658411]
[1764572818426,3.26,126.44,126.41,21.22658411]
[1764572818929,3.26,126.43,126.41,21.22658411]
[1764572820032,10.3791,126.43,126.41,21.22658411]
[1764572820734,3.26,126.42,126.41,21.22658411]
[1764572821032,3.26,126.4,126.35,3.1]
[1764572821328,3.26,126.39,126.34,3.1]
[1764572822031,3.31648849,126.38,126.35,0.05150682]
[1764572822234,7.17858849,126.38,126.35,5.79165719]
[1764572822535,0.05648849,126.38,126.37,5.74015037]
[1764572827135,3.31648849,126.38,126.35,5.79165719]
[1764572828027,10.43848849,126.38,126.35,5.79165719]
[1764572828837,3.26,126.37,126.35,2.69165719]
[1764572830039,3.26,126.36,126.35,0.05150682]
[1764572830635,10.383,126.36,126.35,0.05150682]
[1764572831544,10.3842,126.34,126.31,3.1]
[1764572832542,10.44260177,126.34,126.31,3.1]
[1764572833249,3.26,126.32,126.29,3.1]
[1764572833545,3.26,126.32,126.27,3.1]
[1764572833743,0.05616929,126.31,126.3,3.1]
[1764572834043,3.26,126.36,126.3,3.1]
[1764572834232,3.26,126.36,126.28,110.8699]
[1764572834233,3.26,126.4,126.32,3.1]
[1764572835143,3.26,126.36,126.35,0.05766331]
[1764572836534,3.26,126.34,126.31,27.1]
[1764572836940,3.26,126.34,126.31,30.2]
[1764572837437,3.26,126.38,126.32,3.1]
[1764572837643,0.05560508,126.36,126.32,3.1]
[1764572838334,0.05560508,126.36,126.32,10.2251]
[1764572838539,0.05560508,126.36,126.33,3.1]
[1764572838844,0.05560508,126.36,126.34,3.1]
[1764572839448,20.9904,126.41,126.34,3.1]
[1764572839746,24.2504,126.41,126.36,3.1]
[1764572840540,0.0604996,126.4,126.37,7.44336481]
[1764572840740,0.0604996,126.4,126.38,3.25]
[1764572841140,3.2004996,126.4,126.37,0.05994991]
[1764572841339,3.2004996,126.4,126.37,30.42994991]
[1764572843652,0.0604996,126.4,126.37,30.42994991]
[1764572844252,0.0604996,126.4,126.38,3.25]
[1764572844454,3.2004996,126.4,126.38,3.25]
[1764572845351,0.0604996,126.4,126.38,3.25]
[1764572846751,0.0604996,126.4,126.38,30.37]
[1764572848760,0.0604996,126.4,126.39,3.25]
[1764572849555,0.0604996,126.4,126.38,10.3714]
[1764572849754,0.0604996,126.4,126.38,37.4914]
[1764572850153,0.0604996,126.4,126.38,30.37]
[1764572850353,0.0604996,126.4,126.37,0.05994991]
[1764572850354,3.2004996,126.4,126.37,0.05994991]
[1764572850559,3.2004996,126.4,126.38,3.25]
[1764572852054,0.0604996,126.4,126.38,3.25]
[1764572855053,0.0604996,126.4,126.39,7.1213]
[1764572855255,13.42,126.43,126.39,3.25]
[1764572855962,13.42,126.43,126.41,3.25]
[1764572856260,13.47501147,126.43,126.42,30.37]
[1764572864371,13.47501147,126.43,126.42,37.4896]
[1764572865771,13.47501147,126.43,126.42,34.2196]
[1764572867467,13.47501147,126.43,126.42,37.5096]
[1764572870072,13.47501147,126.43,126.42,30.39]
[1764572870670,16.62501147,126.43,126.42,27.1]
[1764572872573,13.47501147,126.43,126.42,27.1]
[1764572873776,13.47501147,126.43,126.42,30.47]
[1764572874678,0.05501147,126.43,126.42,30.47]
[1764572874879,0.05501147,126.43,126.42,3.37]
[1764572875079,0.05501147,126.43,126.42,30.45]
[1764572880788,0.05501147,126.43,126.42,3.37]
[1764572880987,0.05501147,126.43,126.42,30.45]
[1764572882887,11.38,126.46,126.42,31.20527848]
[1764572883091,11.38,126.46,126.43,3.37]
[1764572883588,11.38,126.46,126.44,3.37]
[1764572883895,8.90955352,126.46,126.45,3.37]
[1764572884088,0.05966751,126.47,126.45,3.37]
[1764572887085,3.20966751,126.47,126.44,3.42380857]
[1764572887281,3.20966751,126.47,126.45,27.08]
[1764572887485,3.20966751,126.47,126.45,30.45]
[1764572887886,0.05966751,126.47,126.46,3.37]
[1764572888083,0.05966751,126.47,126.45,30.45]
[1764572888400,3.20966751,126.47,126.44,0.05380857]
[1764572889291,3.15,126.45,126.44,0.05380857]
[1764572890089,3.15,126.44,126.38,11.24707848]
[1764572890286,3.15,126.44,126.39,30.45]
[1764572890890,3.15,126.44,126.4,3.37]
[1764572891190,3.20594904,126.43,126.41,0.06026996]
[1764572895089,3.20594904,126.43,126.37,3.37]
[1764572895090,3.15,126.42,126.37,30.45]
[1764572895997,2.69746775,126.43,126.33,19.58551325]
[1764572895998,3.15,126.39,126.38,0.05371169]
[1764572899595,0.05222959,126.4,126.38,3.42371169]
[1764572899993,3.42222959,126.4,126.38,0.05371169]
[1764572900696,3.37,126.39,126.38,0.05371169]
[1764572900904,3.37,126.39,126.35,27.08]
[1764572901400,3.37,126.39,126.35,30.22]
[1764572901790,3.37,126.39,126.36,3.14]
[1764572901995,3.37,126.39,126.34,5.78151871]
[1764572902196,3.37,126.39,126.35,3.14]
[1764572902390,10.4919,126.38,126.35,3.14]
[1764572902788,0.05222959,126.4,126.37,3.14]
[1764572902789,3.42222959,126.4,126.37,3.14]
[1764572902989,3.42761423,126.4,126.37,3.14]
[1764572904209,10.54881423,126.4,126.37,3.14]
[1764572905100,3.42761423,126.4,126.37,3.14]
[1764572905295,0.05761423,126.4,126.37,3.14]
[1764572905493,0.05761423,126.4,126.39,3.14]
[1764572907804,0.05761423,126.4,126.39,10.2613]
[1764572908311,0.05761423,126.4,126.38,2.64151871]
[1764572908312,3.37,126.45,126.4,3.14]
[1764572908503,3.37,126.45,126.42,5.78151871]
[1764572909008,7.1176,126.46,126.43,3.14]
[1764572909204,7.16897214,126.46,126.43,3.19910601]
[1764572909709,0.05137214,126.46,126.45,3.14]
[1764572912012,0.05137214,126.46,126.45,10.2579]
[1764572914111,0.05137214,126.46,126.45,3.14]
[1764572914317,3.42137214,126.46,126.44,29.74151871]
[1764572915113,3.42137214,126.46,126.44,30.24]
[1764572915308,0.05137214,126.46,126.45,3.14]
[1764572915610,0.05137214,126.46,126.45,5.78151871]
[1764572919327,0.05137214,126.46,126.45,12.89941871]
[1764572919829,0.05137214,126.46,126.45,39.97941871]
[1764572920224,3.26137214,126.46,126.43,13.06912472]
[1764572920431,3.26137214,126.46,126.44,27.08]
[1764572923435,3.26137214,126.46,126.43,7.17760601]
[1764572923732,3.26137214,126.46,126.43,34.25760601]
[1764572928341,3.21,126.45,126.43,27.13910601]
[1764572931148,10.3281,126.45,126.43,27.13910601]
[1764572931337,3.21,126.45,126.43,27.13910601]
[1764572932233,10.4684,126.44,126.43,0.05910601]
[1764572933941,3.35,126.42,126.4,27.08]
[1764572934646,7.1201,126.41,126.4,27.08]
[1764572935249,7.1201,126.41,126.4,30.21]
[1764572935451,7.1201,126.41,126.4,27.08]
[1764572936550,0.05087906,126.42,126.41,3.13]
[1764572937549,7.17047906,126.42,126.41,3.13]
[1764572938651,7.17047906,126.42,126.4,30.21]
[1764572938845,7.17047906,126.42,126.37,7.1219]
[1764572938846,0.05087906,126.42,126.37,3.13]
[1764572939042,3.40087906,126.42,126.38,27.08]
[1764572939242,7.1213,126.39,126.38,27.08]
[1764572939653,7.1213,126.39,126.38,30.21]
[1764572940052,7.1224,126.37,126.36,3.13]
[1764572940240,7.1224,126.37,126.35,3.13]
[1764572940446,7.17585657,126.37,126.35,3.13]
[1764572942148,0.05345657,126.37,126.36,2.64151871]
[1764572942350,114.0934,126.43,126.37,3.13]
[1764572942556,3.35,126.42,126.39,3.13]
[1764572943349,7.1204,126.41,126.39,3.18948962]
[1764572944646,3.35,126.39,126.36,3.13]
[1764572945653,3.40242167,126.39,126.36,3.13]
[1764572946551,10.52392167,126.39,126.36,3.13]
[1764572949552,3.35,126.38,126.36,3.13]
[1764572952060,3.35,126.37,126.34,32.87151871]
[1764572952263,3.35,126.37,126.35,3.13]
[1764572953960,0.05242167,126.39,126.37,3.13]
[1764572954365,0.05242167,126.39,126.38,3.13]
[1764572955871,3.40242167,126.39,126.33,3.13]
[1764572956770,10.4727,126.37,126.33,3.13]
[1764572956971,0.05088551,126.36,126.33,3.13]
[1764572957274,0.05088551,126.36,126.34,3.13]
[1764572957669,3.35,126.42,126.36,3.13]
[1764572957869,3.35,126.42,126.38,3.13]
[1764572958774,3.3998174,126.41,126.39,0.05469434]
[1764572958974,10.5204174,126.41,126.39,0.05469434]
[1764572959373,10.4707,126.4,126.39,0.05469434]
[1764572962071,7.1207,126.4,126.39,3.35469434]
[1764572962270,10.4307,126.4,126.39,0.05469434]
[1764572966185,0.0498174,126.41,126.39,3.19469434]
[1764572968889,0.0498174,126.41,126.39,10.31589434]
[1764572969185,0.0498174,126.41,126.4,3.14]
[1764572969881,0.0498174,126.41,126.39,3.19469434]
[1764572970080,3.3398174,126.41,126.39,3.19469434]
[1764572970276,0.0498174,126.41,126.39,3.19469434]
[1764572972089,3.29,126.49,126.4,3.14]
[1764572972283,3.29,126.49,126.42,3.14]
[1764572973087,0.05111317,126.47,126.44,3.19896161]
[1764572973391,10.45801317,126.47,126.44,3.19896161]
[1764572973586,3.29,126.46,126.38,3.14]
[1764572973791,3.29,126.45,126.38,3.14]
[1764572973986,3.29,126.47,126.39,3.14]
[1764572974582,3.34113502,126.44,126.42,0.04801559]
[1764572974785,3.34018453,126.44,126.42,0.04801559]
[1764572975885,0.05018453,126.44,126.42,3.18801559]
[1764572982993,7.16858453,126.44,126.43,30.28]
[1764572986999,0.05018453,126.44,126.43,30.28]
[1764572990103,3.11,126.49,126.43,30.28]
[1764572990294,3.11,126.49,126.44,3.37]
[1764572990802,10.2257,126.49,126.44,10.4881]
[1764572991002,10.2257,126.49,126.45,3.37]
[1764572991304,3.16095933,126.48,126.46,0.057548]
[1764572992603,10.2268,126.47,126.46,0.057548]
[1764572997691,0.05095933,126.48,126.46,3.427548]
[1764572998096,3.11,126.53,126.47,3.37]
[1764572998298,3.11,126.53,126.49,3.37]
[1764572998797,10.2235,126.53,126.49,3.37]
[1764572999195,0.05826339,126.52,126.5,3.42002876]
[1764573000607,0.05826339,126.52,126.51,3.37]
[1764573001605,3.11,126.57,126.51,3.37]
[1764573002311,10.2214,126.57,126.51,10.4845]
[1764573002510,10.2214,126.57,126.52,3.37]
[1764573002705,0.05485702,126.55,126.53,3.42065688]
[1764573004417,3.16485702,126.55,126.53,3.42065688]
[1764573007312,0.05485702,126.55,126.53,3.42065688]
[1764573007616,0.05485702,126.55,126.54,30.47]
[1764573008606,0.00485702,126.55,126.54,34.59635796]
[1764573008812,7.1106,126.59,126.55,3.37]
[1764573009012,110.58,126.62,126.57,3.37]
[1764573009013,7.1089,126.61,126.57,3.37]
[1764573009517,3.11,126.65,126.59,3.37]
[1764573009715,0.05914599,126.63,126.61,3.42371245]
[1764573011412,3.16914599,126.63,126.61,0.05371245]
[1764573011822,0.05914599,126.63,126.61,3.42371245]
[1764573016914,3.16914599,126.63,126.55,3.37]
[1764573017114,3.11,126.62,126.56,3.37]
[1764573017815,3.11,126.59,126.56,3.37]
[1764573018026,3.16232542,126.59,126.56,3.42899535]
[1764573018216,3.16232542,126.59,126.56,0.05899535]
[1764573019322,7.1107,126.58,126.56,0.05899535]
[1764573019627,10.2207,126.58,126.56,0.05899535]
[1764573021420,10.2207,126.58,126.56,3.43899535]
[1764573021723,7.1107,126.58,126.56,3.43899535]
[1764573022821,10.4807,126.58,126.56,3.43899535]
[1764573023022,10.4807,126.58,126.56,0.05899535]
[1764573024025,10.4807,126.58,126.56,3.43899535]
[1764573024516,3.37,126.58,126.56,3.43899535]
[1764573027021,0.05232542,126.59,126.56,3.43899535]
[1764573027217,3.28232542,126.59,126.56,3.43899535]
[1764573027828,0.05232542,126.59,126.56,3.43899535]
[1764573030327,0.05232542,126.59,126.57,30.44]
[1764573033121,3.28232542,126.59,126.57,30.44]
[1764573034729,0.05232542,126.59,126.57,30.44]
[1764573035825,3.28232542,126.59,126.56,0.05899535]
[1764573036223,3.23,126.57,126.56,0.05899535]
[1764573036619,10.3411,126.57,126.56,0.05899535]
[1764573039537,3.23,126.58,126.56,0.05899535]
[1764573040231,10.3411,126.57,126.56,0.05899535]
[1764573044338,12.97554253,126.57,126.56,0.05899535]
[1764573044843,3.23,126.54,126.51,3.36]
[1764573045036,3.23,126.53,126.51,3.36]
[1764573045941,3.29021209,126.53,126.51,3.4118809]
[1764573046240,0.06021209,126.53,126.51,3.4118809]
[1764573046443,0.06021209,126.53,126.52,5.99444253]
[1764573047435,0.06021209,126.53,126.52,13.10834253]
[1764573048643,0.06021209,126.53,126.52,5.99444253]
[1764573048845,0.06021209,126.53,126.52,7.57444253]
[1764573049641,10.341,126.58,126.53,3.36]
[1764573050839,0.05971193,126.57,126.55,3.36]
[1764573051039,0.05971193,126.57,126.55,30.44]
[1764573053042,0.05971193,126.57,126.55,27.08]
[1764573053239,3.07,126.56,126.54,0.05859373]
[1764573053539,3.07,126.55,126.54,0.05859373]
[1764573053839,3.07,126.55,126.51,27.08]
[1764573054045,3.07,126.53,126.51,27.08]
[1764573054843,3.12352996,126.53,126.51,27.13310087]
[1764573055139,5.70444253,126.52,126.51,0.05310087]
[1764573055341,3.07,126.51,126.45,3.36]
[1764573055535,3.07,126.49,126.46,3.36]
[1764573056441,3.1301882,126.49,126.46,3.41780871]
[1764573057244,0.0601882,126.49,126.46,3.41780871]
[1764573057443,0.0601882,126.49,126.48,3.36]
[1764573058346,3.07,126.54,126.48,3.36]
[1764573058645,3.07,126.54,126.5,3.36]
[1764573059248,0.05172443,126.53,126.51,0.05573734]
[1764573060539,3.12172443,126.53,126.51,0.05573734]
[1764573061141,3.12172443,126.53,126.52,3.36]
[1764573061142,0.05172443,126.53,126.52,3.36]
[1764573062349,3.07,126.58,126.52,3.36]
[1764573062551,3.07,126.58,126.54,3.36]
[1764573062945,3.07,126.58,126.55,5.99444253]
[1764573063146,3.07,126.6,126.56,3.36]
[1764573063346,0.05062375,126.59,126.57,0.05585605]
[1764573063545,3.12062375,126.59,126.57,0.05585605]
[1764573066051,0.05062375,126.59,126.57,3.41585605]
[1764573066753,0.05062375,126.59,126.57,30.51585605]
[1764573066957,0.05062375,126.59,126.58,3.36]
[1764573069757,0.05062375,126.59,126.58,30.44]
[1764573073965,0.05062375,126.59,126.58,37.5506]
[1764573079566,0.05062375,126.59,126.58,30.44]
[1764573083369,0.05062375,126.59,126.58,3.36]
[1764573083569,0.05062375,126.59,126.58,30.42]
[1764573099483,3.15062375,126.59,126.57,0.05585605]
[1764573099790,3.15062375,126.59,126.54,27.06]
[1764573100080,3.15062375,126.59,126.54,30.31]
[1764573100475,3.1,126.55,126.54,27.06]
[1764573101187,10.2123,126.55,126.54,27.06]
[1764573105675,10.2128,126.54,126.52,11.55684]
[1764573105882,3.1,126.53,126.52,11.55684]
[1764573106983,10.2134,126.53,126.52,11.55684]
[1764573107477,10.2134,126.53,126.52,2.71e-05]
[1764573107683,3.1,126.5,126.48,27.06]
[1764573108689,3.1540656,126.5,126.48,27.10177479]
[1764573109592,7.1156,126.49,126.48,27.10177479]
[1764573110594,10.2256,126.49,126.48,27.10177479]
[1764573114502,7.1156,126.49,126.48,27.10177479]
[1764573114797,10.2256,126.49,126.48,27.10177479]
[1764573116198,7.1156,126.49,126.48,30.37177479]
[1764573118203,113.801,126.49,126.47,27.06]
[1764573119306,7.1162,126.48,126.47,27.06]
[1764573121405,10.2262,126.48,126.47,4.62e-06]
[1764573123209,3.11,126.46,126.43,0.42]
[1764573123406,3.17069773,126.46,126.43,0.42]
[1764573123607,110.77819773,126.46,126.43,0.42]
[1764573123798,7.1184,126.44,126.43,0.42]
[1764573128510,10.2294,126.43,126.38,4.11569377]
[1764573128810,0.05614809,126.42,126.4,0.42]
[1764573129708,0.05614809,126.42,126.41,0.42]
[1764573134215,0.05614809,126.42,126.41,4.53569377]
[1764573138311,0.05614809,126.42,126.41,3.05994254]
[1764573143833,0.05614809,126.42,126.41,10.18004254]
[1764573149535,0.05614809,126.42,126.41,7.5401]
[1764573149733,0.05614809,126.42,126.41,10.18004254]
[1764573159644,0.05614809,126.42,126.41,7.5401]
[1764573159945,0.05614809,126.42,126.41,10.18004254]
[1764573164244,0.05614809,126.42,126.41,37.26004254]
[1764573169144,0.05614809,126.42,126.41,10.18004254]
[1764573169346,5.74,126.45,126.42,0.42]
[1764573169650,9.06,126.45,126.43,2.63994254]
[1764573169850,9.06,126.45,126.44,27.08]
[1764573174653,16.1779,126.45,126.44,27.08]
[1764573174956,16.1779,126.45,126.39,43.77817323]
[1764573174957,3.28,126.44,126.39,0.41]
[1764573175156,3.28,126.44,126.39,27.49]
[1764573175653,10.4003,126.41,126.39,27.49]
[1764573176053,10.45214741,126.41,126.39,27.49]
[1764573176945,3.33184741,126.41,126.39,27.49]
[1764573180260,0.05184741,126.41,126.4,0.46]
[1764573181452,3.33184741,126.41,126.39,27.08]
[1764573181652,3.28,126.4,126.36,0.46]
[1764573181852,3.28,126.4,126.37,0.46]
[1764573186662,3.28,126.4,126.38,0.46]
[1764573189665,3.28,126.39,126.35,7.5835]
[1764573189870,3.28,126.37,126.35,27.54]
[1764573190962,3.33116202,126.38,126.36,0.46]
[1764573191162,3.33116202,126.38,126.35,27.08]
[1764573191462,3.33116202,126.38,126.35,27.54]
[1764573193570,3.33116202,126.38,126.36,0.46]
[1764573193869,0.05116202,126.38,126.37,0.46]
[1764573194567,3.33116202,126.38,126.36,3.09994254]